fUSD/lending_fUSD_20250217
["ID","MTS","AMOUNT","RATE_DAILY","PERIOD"]
[353352792,1739790653016,-500.0,0.00013698,2]
[353352793,1739790653026,-331.330825,0.00013698,2]
[353352794,1739790653037,-151.0,0.00013698,2]
[353352795,1739790653047,-500.0,0.00013698,2]
[353352796,1739790653058,-1218.77,0.00013698,2]
[353352797,1739790653071,-2145.47,0.00013698,2]
[353352798,1739790653081,-2962.62,0.00013698,2]
[353352799,1739790653090,-513.70334256,0.00013698,2]
[353352800,1739790653101,-151.0,0.00013698,2]
[353352801,1739790653112,-922.15,0.00013698,2]
[353352802,1739790653122,-500.0,0.00013698,2]
[353352803,1739790653132,-451.482151,0.00013698,2]
[353352804,1739790653142,-2297.448347,0.00013698,2]
[353352805,1739790653152,-656.17,0.00013698,2]
[353352806,1739790653162,-500.0,0.00013698,2]
[353352807,1739790653172,-500.0,0.00013698,2]
[353352808,1739790653182,-500.0,0.00013698,2]
[353352809,1739790653193,-2297.448347,0.00013698,2]
[353352810,1739790653203,-2735.48,0.00013698,2]
[353352811,1739790653213,-507.93358603,0.00013698,2]
[353352812,1739790653224,-500.0,0.00013698,2]
[353352813,1739790653234,-2828.0,0.00013698,2]
[353352814,1739790653243,-1991.26,0.00013698,2]
[353352815,1739790653252,-500.0,0.00013698,2]
[353352816,1739790653263,-1631.47,0.00013698,2]
[353352817,1739790653272,-500.0,0.00013698,2]
[353352818,1739790653281,-507.775138,0.00013698,2]
[353352819,1739790653291,-500.0,0.00013698,2]
[353352820,1739790653300,-1850.39,0.00013698,2]
[353352821,1739790653309,-732.23,0.00013698,2]
[353352822,1739790653323,-1516.8,0.00013698,2]
[353352823,1739790653334,-1000.61,0.00013698,2]
[353352824,1739790653344,-500.0,0.00013698,2]
[353352825,1739790653354,-1158.04,0.00013698,2]
[353352826,1739790653363,-840.36,0.00013698,2]
[353352827,1739790653374,-500.0,0.00013698,2]
[353352828,1739790653384,-151.0,0.00013698,2]
[353352829,1739790653393,-1664.18,0.00013698,2]
[353352830,1739790653406,-500.0,0.00013698,2]
[353352831,1739790653416,-1780.49,0.00013698,2]
[353352832,1739790653425,-1999.08,0.00013698,2]
[353352833,1739790653434,-510.7839517,0.00013698,2]
[353352834,1739790653444,-500.0,0.00013698,2]
[353352835,1739790653453,-500.0,0.00013698,2]
[353352836,1739790653462,-500.0,0.00013698,2]
[353352837,1739790653472,-965.06,0.00013698,2]
[353352838,1739790653482,-1199.84,0.00013698,2]
[353352839,1739790653491,-500.0,0.00013698,2]
[353352840,1739790653501,-500.0,0.00013698,2]
[353352841,1739790653511,-647.52,0.00013698,2]
[353352842,1739790653520,-3438.38,0.00013698,2]
[353352843,1739790653529,-151.0,0.00013698,2]
[353352844,1739790653539,-1023.64,0.00013698,2]
[353352845,1739790653548,-569.67,0.00013698,2]
[353352846,1739790653558,-2366.66,0.00013698,2]
[353352847,1739790653570,-329.272265,0.00013698,2]
[353352848,1739790653580,-151.0,0.00013698,2]
[353352849,1739790653590,-1689.33,0.00013698,2]
[353352850,1739790653600,-1201.78,0.00013698,2]
[353352851,1739790653611,-500.0,0.00013698,2]
[353352852,1739790653620,-500.0,0.00013698,2]
[353352853,1739790653631,-500.0,0.00013698,2]
[353352854,1739790653641,-1603.36,0.00013698,2]
[353352855,1739790653651,-500.0,0.00013698,2]
[353352856,1739790653660,-151.0,0.00013698,2]
[353352857,1739790653670,-500.0,0.00013698,2]
[353352858,1739790653681,-2184.66,0.00013698,2]
[353352859,1739790653692,-500.0,0.00013698,2]
[353352860,1739790653702,-654.92,0.00013698,2]
[353352861,1739790653712,-1288.16,0.00013698,2]
[353352862,1739790653725,-504.75370137,0.00013698,2]
[353352863,1739790653736,-2138.03,0.00013698,2]
[353352864,1739790653745,-151.0,0.00013698,2]
[353352865,1739790653755,-756.44,0.00013698,2]
[353352866,1739790653764,-500.0,0.00013698,2]
[353352867,1739790653774,-1247.83,0.00013698,2]
[353352868,1739790653784,-364.684806,0.00013698,2]
[353352869,1739790653794,-500.0,0.00013698,2]
[353352870,1739790653805,-500.0,0.00013698,2]
[353352871,1739790653814,-1279.46,0.00013698,2]
[353352872,1739790653830,-500.0,0.00013698,2]
[353352873,1739790653840,-502.57856063,0.00013698,2]
[353352874,1739790653850,-151.0,0.00013698,2]
[353352875,1739790653859,-2291.79,0.00013698,2]
[353352876,1739790653869,-151.0,0.00013698,2]
[353352877,1739790653880,-1561.94,0.00013698,2]
[353352878,1739790653892,-151.0,0.00013698,2]
[353352879,1739790653902,-500.0,0.00013698,2]
[353352880,1739790653914,-511.53581266,0.00013698,2]
[353352881,1739790653925,-257.983165,0.00013698,2]
[353352882,1739790653935,-500.0,0.00013698,2]
[353352883,1739790653947,-500.0,0.00013698,2]
[353352884,1739790653957,-920.68,0.00013698,2]
[353352885,1739790653968,-500.0,0.00013698,2]
[353352886,1739790653979,-601.96,0.00013698,2]
[353352887,1739790653988,-500.0,0.00013698,2]
[353352888,1739790653998,-2709.88,0.00013698,2]
[353352889,1739790654009,-500.0,0.00013698,2]
[353352890,1739790654020,-500.0,0.00013698,2]
[353352891,1739790654030,-500.0,0.00013698,2]
[353352892,1739790654040,-1896.12,0.00013698,2]
[353352893,1739790654050,-1311.01,0.00013698,2]
[353352894,1739790654059,-1277.08,0.00013698,2]
[353352895,1739790654070,-2240.78,0.00013698,2]
[353352896,1739790654080,-500.0,0.00013698,2]
[353352897,1739790654090,-500.0,0.00013698,2]
[353352898,1739790654100,-696.37,0.00013698,2]
[353352899,1739790654110,-500.0,0.00013698,2]
[353352900,1739790654119,-500.0,0.00013698,2]
[353352901,1739790654130,-2265.69,0.00013698,2]
[353352902,1739790654139,-500.0,0.00013698,2]
[353352903,1739790654149,-1444.3,0.00013698,2]
[353352904,1739790654159,-500.0,0.00013698,2]
[353352905,1739790654168,-547.05,0.00013698,2]
[353352906,1739790654178,-281.215447,0.00013698,2]
[353352907,1739790654188,-820.25,0.00013698,2]
[353352908,1739790654199,-820.25,0.00013698,2]
[353352909,1739790654209,-501.02920383,0.00013698,2]
[353352910,1739790654219,-820.25,0.00013698,2]
[353352911,1739790654229,-820.25,0.00013698,2]
[353352912,1739790654239,-151.0,0.00013698,2]
[353352913,1739790654249,-820.25,0.00013698,2]
[353352914,1739790654258,-820.25,0.00013698,2]
[353352915,1739790654268,-820.25,0.00013698,2]
[353352916,1739790654277,-820.25,0.00013698,2]
[353352917,1739790654287,-500.0,0.00013698,2]
[353352918,1739790654296,-820.25,0.00013698,2]
[353352919,1739790654306,-500.0,0.00013698,2]
[353352920,1739790654319,-820.25,0.00013698,2]
[353352921,1739790654329,-500.0,0.00013698,2]
[353352922,1739790654340,-500.0,0.00013698,2]
[353352923,1739790654349,-500.0,0.00013698,2]
[353352924,1739790654359,-500.0,0.00013698,2]
[353352925,1739790654369,-216.397857,0.00013698,2]
[353352926,1739790654379,-1454.27,0.00013698,2]
[353352927,1739790654389,-2164.07,0.00013698,2]
[353352928,1739790654403,-2803.42,0.00013698,2]
[353352929,1739790654416,-500.0,0.00013698,2]
[353352930,1739790654427,-500.0,0.00013698,2]
[353352931,1739790654437,-500.0,0.00013698,2]
[353352932,1739790654447,-500.0,0.00013698,2]
[353352933,1739790654457,-744.46,0.00013698,2]
[353352934,1739790654467,-524.82,0.00013698,2]
[353352935,1739790654476,-213.62044808,0.00013698,2]
[353352936,1739790654486,-300.0,0.00013698,2]
[353352937,1739790654496,-500.0,0.00013699,2]
[353352938,1739790654506,-500.0,0.00013699,2]
[353352939,1739790654515,-500.0,0.00013699,2]
[353352940,1739790654526,-500.0,0.00013699,2]
[353352941,1739790654536,-322.56156471,0.00013699,2]
[353352942,1739790654546,-200.0,0.00013699,2]
[353352943,1739790654556,-300.0,0.00013699,2]
[353352944,1739790654565,-1983.0,0.00013699,2]
[353352945,1739790654577,-300.0,0.00013699,2]
[353352946,1739790654587,-300.0,0.00013699,2]
[353352947,1739790654596,-300.0,0.00013699,2]
[353352948,1739790654607,-745.4,0.00013699,2]
[353352949,1739790654616,-745.4,0.00013699,2]
[353352950,1739790654626,-745.4,0.00013699,2]
[353352951,1739790654636,-745.4,0.00013699,2]
[353352952,1739790654645,-745.4,0.00013699,2]
[353352953,1739790654655,-971.31,0.00013699,2]
[353352954,1739790654666,-971.31,0.00013699,2]
[353352955,1739790654676,-971.31,0.00013699,2]
[353352956,1739790654685,-971.31,0.00013699,2]
[353352957,1739790654695,-971.31,0.00013699,2]
[353352958,1739790654705,-500.0,0.00013699,2]
[353352959,1739790654714,-500.0,0.00013699,2]
[353352960,1739790654723,-500.0,0.00013699,2]
[353352961,1739790654733,-500.0,0.00013699,2]
[353352962,1739790654743,-500.0,0.00013699,2]
[353352963,1739790654753,-2096.67,0.00013699,2]
[353352964,1739790654762,-2096.67,0.00013699,2]
[353352965,1739790654772,-2096.67,0.00013699,2]
[353352966,1739790654781,-2096.67,0.00013699,2]
[353352967,1739790654791,-151.714407,0.00013699,2]
[353352968,1739790654801,-151.0,0.00013699,2]
[353352969,1739790654811,-502.86909019,0.00013699,2]
[353352970,1739790654822,-500.0,0.00013699,2]
[353352971,1739790654832,-500.0,0.00013699,2]
[353352972,1739790654842,-500.0,0.00013699,2]
[353352973,1739790654851,-283.012925,0.00013699,2]
[353352974,1739790654861,-283.012925,0.00013699,2]
[353352975,1739790654870,-151.0,0.00013699,2]
[353352976,1739790654880,-500.0,0.00013699,2]
[353352977,1739790654889,-500.0,0.00013699,2]
[353352978,1739790654899,-500.0,0.00013699,2]
[353352979,1739790654909,-500.0,0.00013699,2]
[353352980,1739790654918,-500.0,0.00013699,2]
[353352981,1739790654928,-500.0,0.00013699,2]
[353352982,1739790654937,-500.0,0.00013699,2]
[353352983,1739790654947,-500.0,0.00013699,2]
[353352984,1739790654957,-500.0,0.00013699,2]
[353352985,1739790654966,-500.0,0.00013699,2]
[353352986,1739790654976,-500.0,0.00013699,2]
[353352987,1739790654986,-820.25,0.00013699,2]
[353352988,1739790654996,-820.25,0.00013699,2]
[353352989,1739790655006,-820.25,0.00013699,2]
[353352990,1739790655015,-820.25,0.00013699,2]
[353352991,1739790655025,-65000.0,0.000137,3]
[353352992,1739790655035,-3210.44701199,0.000137,3]
[353352993,1739790655677,-2527.86367822,0.000137,3]
[353352994,1739790655688,-2840.539929,0.000137,3]
[353352995,1739790655777,-743.3523116,0.000137,3]
[353352996,1739790655789,-374.55,0.000137,3]
[353352997,1739790655800,-745.83365208,0.000137,3]
[353352998,1739790655825,-1435.58914909,0.000137,3]
[353352999,1739790655835,-429556.49243023,0.000137,3]
[353353000,1739790655846,-344.91493139,0.000137,3]
[353353001,1739790655857,-11632.94506281,0.000137,3]
[353353253,1739791842829,-150.0,9.999e-05,2]
[353353254,1739791842839,-500.0,9.999e-05,2]
[353353255,1739791842849,-321.56721,9.999e-05,2]
[353353256,1739791842859,-550.0,0.0001,2]
[353353257,1739791842868,-155023.21203059,0.0001,2]
[353353258,1739791842884,-9639.4960831,0.0001,2]
[353353259,1739791842941,-125527.21295592,0.0001,2]
[353353260,1739791842950,-93454.84798261,0.0001,2]
[353353261,1739791842960,-160187.72445447,0.0001,2]
[353353285,1739791845554,-653.96552025,0.0001,2]
[353353395,1739792158372,1000.0,0.0002,120]
[353353396,1739792161849,1000.0,0.0002,120]
[353353397,1739792163574,1000.0,0.0002,120]
[353353398,1739792164777,1000.0,0.0002,120]
[353353399,1739792165797,1000.0,0.0002,120]
[353353400,1739792167843,1000.0,0.0002,120]
[353353401,1739792168884,1000.0,0.0002,120]
[353353402,1739792169349,1000.0,0.0002,120]
[353353403,1739792182529,1000.0,0.0002,120]
[353353404,1739792183277,1000.0,0.0002,120]
[353353405,1739792193979,741.0,0.0002,120]
[353353664,1739793031767,-275.8,8.962e-05,2]
[353353665,1739793031821,-258.57,8.962e-05,2]
[353353666,1739793031832,-665.63,8.962e-05,2]
[353353667,1739793031841,-41.44731665,8.981e-05,2]
[353353668,1739793031852,-629.99914214,8.981e-05,2]
[353353669,1739793031876,-192.42354121,8.981e-05,2]
[353353670,1739793031885,-150.0,9.049e-05,2]
[353353671,1739793031895,-150.0,9.362e-05,2]
[353353672,1739793031904,-150.0,9.858e-05,2]
[353353673,1739793031915,-47913.20641284,9.9e-05,2]
[353353674,1739793031925,-223.0,9.945e-05,2]
[353353675,1739793031936,-150.0,9.999e-05,2]
[353353676,1739793031949,-244512.33832915,0.0001,2]
[353353677,1739793031959,-150.13263265,0.0001,2]
[353353678,1739793031969,-4000.0,0.0001,2]
[353353679,1739793031978,-500.0,0.00010058,2]
[353353680,1739793031988,-1100.0,0.00010058,2]
[353353681,1739793031998,-357.91,0.00010137,2]
[353353682,1739793032008,-157.73,0.00010137,2]
[353353683,1739793032018,-432.19665895,0.0001021,2]
[353353684,1739793032027,-1200.0,0.00010332,2]
[353353685,1739793032038,-432.19665895,0.00010645,2]
[353353686,1739793032048,-200.0,0.00010743,2]
[353353687,1739793032058,-432.19665895,0.00010779,2]
[353353688,1739793032067,-151.05034163,0.000109,2]
[353353689,1739793032076,-151.0503416,0.000109,2]
[353353690,1739793032086,-1525.83635065,0.00011,2]
[353353691,1739793032095,-2822.25828487,0.00011,2]
[353353692,1739793032105,-175.16,0.00011018,2]
[353353693,1739793032114,-1000.0,0.00011043,2]
[353353694,1739793032124,-200.0,0.00011064,2]
[353353695,1739793032134,-1463.73186176,0.00011099,2]
[353353696,1739793032147,-1463.7318617,0.00011099,2]
[353353697,1739793032156,-1463.7318617,0.00011099,2]
[353353698,1739793032166,-249.0,0.0001118,2]
[353353699,1739793032176,-822.8,0.00011182,2]
[353353700,1739793032187,-432.19665895,0.00011211,2]
[353353701,1739793032198,-1463.7318617,0.0001123,2]
[353353702,1739793032207,-863.87,0.00011245,2]
[353353703,1739793032217,-150.0,0.00011292,2]
[353353704,1739793032227,-249.0,0.0001137,2]
[353353705,1739793032237,-432.19665895,0.000114,2]
[353353706,1739793032247,-500.0,0.00011428,2]
[353353707,1739793032257,-1100.0,0.00011428,2]
[353353708,1739793032266,-311.03,0.00011439,2]
[353353709,1739793032276,-434.57,0.00011507,2]
[353353710,1739793032286,-400.27,0.00011553,2]
[353353711,1739793032296,-249.0,0.0001156,2]
[353353712,1739793032305,-173.61,0.00011592,2]
[353353713,1739793032315,-250.0,0.0001162,2]
[353353714,1739793032325,-151.87,0.00011624,2]
[353353715,1739793032336,-23900.0,0.0001164,2]
[353353716,1739793032346,-11792.84740855,0.0001165,2]
[353353717,1739793032355,-1463.7318617,0.00011673,2]
[353353718,1739793032364,-151.87,0.00011682,2]
[353353719,1739793032374,-1200.0,0.00011702,2]
[353353720,1739793032383,-249.0,0.0001175,2]
[353353721,1739793032393,-1000.0,0.0001175,2]
[353353722,1739793032403,-1000.0,0.0001175,2]
[353353723,1739793032415,-1000.0,0.0001175,2]
[353353724,1739793032424,-1000.0,0.0001175,2]
[353353725,1739793032435,-1000.0,0.0001175,2]
[353353726,1739793032445,-1000.0,0.0001175,2]
[353353727,1739793032456,-1000.0,0.0001175,2]
[353353728,1739793032465,-214.0,0.0001175,2]
[353353729,1739793032475,-151.0503416,0.00011757,2]
[353353730,1739793032484,-11792.84740848,0.00011899,2]
[353353731,1739793032494,-249.0,0.0001194,2]
[353353732,1739793032503,-600.0,0.00012,2]
[353353733,1739793032513,-24066.41625339,0.00012075,2]
[353353734,1739793032523,-1463.7318617,0.00012117,2]
[353353735,1739793032532,-249.0,0.0001212,2]
[353353736,1739793032545,-314.09779953,0.00012123,2]
[353353737,1739793032554,-11792.84740848,0.00012148,2]
[353353738,1739793032563,-1728.77058082,0.00012222,2]
[353353739,1739793032573,-1728.77058082,0.00012223,2]
[353353740,1739793032582,-415.04,0.00012301,2]
[353353741,1739793032591,-249.0,0.0001231,2]
[353353742,1739793032600,-2026.0,0.00012323,2]
[353353743,1739793032611,-1274.0,0.00012323,2]
[353353744,1739793032620,-570.12,0.00012323,2]
[353353745,1739793032629,-151.1,0.00012323,2]
[353353746,1739793032638,-640.162,0.00012323,2]
[353353747,1739793032648,-1827.0,0.00012323,2]
[353353748,1739793032657,-2957.0,0.00012323,2]
[353353749,1739793032666,-855.289,0.00012323,2]
[353353750,1739793032675,-1271.191,0.00012323,2]
[353353751,1739793032685,-908.0,0.00012323,2]
[353353752,1739793032694,-545.834,0.00012323,2]
[353353753,1739793032704,-4029.0,0.00012323,2]
[353353754,1739793032713,-1009.0,0.00012323,2]
[353353755,1739793032722,-289.663,0.00012323,2]
[353353756,1739793032731,-150.0,0.00012323,2]
[353353757,1739793032741,-168.168,0.00012323,2]
[353353758,1739793032750,-3917.0,0.00012323,2]
[353353759,1739793032760,-150.0,0.00012329,2]
[353353761,1739793032769,-150.0,0.00012329,2]
[353353763,1739793032778,-11792.84740848,0.00012397,2]
[353353764,1739793032787,-314.09779943,0.00012407,2]
[353353766,1739793032796,-1000.0,0.00012424,2]
[353353768,1739793032806,-249.0,0.000125,2]
[353353770,1739793032815,-150.0,0.00012521,2]
[353353772,1739793032824,-1463.7318617,0.0001256,2]
[353353774,1739793032833,-822.8,0.0001258,2]
[353353776,1739793032842,-151.0503416,0.00012618,2]
[353353778,1739793032851,-11792.84740848,0.00012646,2]
[353353780,1739793032860,-440.1,0.00012676,2]
[353353782,1739793032870,-249.0,0.0001269,2]
[353353785,1739793032879,-314.09779943,0.0001269,2]
[353353827,1739793033118,-1782.0,0.000127,2]
[353353829,1739793033131,-775.82,0.00012715,2]
[353353831,1739793033145,-1100.0,0.00012798,2]
[353353832,1739793033154,-200.0,0.000128,4]
[353353833,1739793033163,-175.16,0.00012854,2]
[353353834,1739793033173,-249.0,0.0001288,2]
[353353835,1739793033183,-11792.84740848,0.00012894,2]
[353353836,1739793033193,-500.0,0.000129,4]
[353353837,1739793033204,-314.09779943,0.00012974,2]
[353353838,1739793033214,-940.21809283,0.00013,2]
[353353839,1739793033225,-400.0,0.00013,3]
[353353840,1739793033235,-1463.7318617,0.00013003,2]
[353353841,1739793033244,-775.82,0.00013041,2]
[353353842,1739793033254,-775.82,0.00013041,2]
[353353843,1739793033263,-227.76,0.00013041,2]
[353353844,1739793033273,-249.0,0.0001307,2]
[353353846,1739793033283,-1200.0,0.00013072,2]
[353353848,1739793033293,-11792.84740848,0.00013143,2]
[353353850,1739793033302,-314.09779943,0.00013257,2]
[353353852,1739793033311,-249.0,0.0001326,2]
[353353853,1739793033322,-11792.84740848,0.00013392,2]
[353353855,1739793033331,-795.466927,0.00013425,2]
[353353857,1739793033341,-1463.7318617,0.00013447,2]
[353353859,1739793033351,-249.0,0.0001345,2]
[353353861,1739793033360,-151.0503416,0.00013478,2]
[353353863,1739793033370,-197.08547211,0.00013489,2]
[353353865,1739793033379,-172.70112972,0.00013499,2]
[353353867,1739793033388,-764327.41252576,0.00013499,3]
[353353912,1739793033817,-10986.10771295,0.00013499,3]
[353353917,1739793033859,-3499.37093081,0.00013499,3]
[353353934,1739793034009,-482.10129402,0.00013499,3]
[353354180,1739793037622,-12602.17772535,0.0001,2]
[353354181,1739793037679,-511.90603702,0.0001,2]
[353354182,1739793037691,-468.40396298,0.0001,2]
[353354183,1739793037703,-5886.42493323,0.0001,2]
[353354184,1739793037715,-2254.69999991,0.0001,2]
[353354185,1739793037740,-2612.05959304,0.0001,2]
[353354186,1739793037750,-2082.0,0.000135,2]
[353354187,1739793037760,-3231.50064894,0.000135,4]
[353354188,1739793037771,-12073.477402,0.000135,4]
[353354189,1739793037795,-2227.18239382,0.000135,4]
[353354190,1739793037806,-2000.942007,0.000135,4]
[353354191,1739793037829,-2067.63408485,0.000135,4]
[353354192,1739793037841,-725.46210186,0.000135,4]
[353354193,1739793037860,-39737.80136153,0.000135,4]
[353354194,1739793037869,-745.17810448,0.000135,2]
[353354195,1739793037879,-174.93091377,0.000135,2]
[353354196,1739793037888,-800.0,0.000135,4]
[353354197,1739793037898,-173.61,0.00013505,2]
[353354198,1739793037908,-863.87,0.00013508,2]
[353354199,1739793037918,-314.09779943,0.00013541,2]
[353354200,1739793037928,-500.0,0.00013589,2]
[353354201,1739793037938,-2000.0,0.00013589,2]
[353354202,1739793037947,-500.0,0.00013589,2]
[353354203,1739793037957,-200.0,0.00013589,2]
[353354204,1739793037967,-179.404,0.00013596,2]
[353354205,1739793037977,-2098.037,0.00013597,2]
[353354206,1739793037986,-1081.12434151,0.000136,2]
[353354207,1739793037999,-3758.59430738,0.000136,2]
[353354208,1739793038010,-1507.57772365,0.000136,2]
[353354209,1739793038022,-822.49017547,0.000136,2]
[353354210,1739793038033,-6630.33922869,0.000136,2]
[353354211,1739793038045,-567.08203043,0.000136,2]
[353354264,1739793039795,-999.97422028,0.000136,2]
[353354270,1739793039836,-52694.68376277,0.000136,2]
[353354272,1739793039845,-225.9817405,0.000136,2]
[353354274,1739793039855,-300.0,0.000136,10]
[353354276,1739793039865,-1100.0,0.000136,4]
[353354278,1739793039874,-249.0,0.0001364,2]
[353354280,1739793039883,-11792.84740848,0.00013641,2]
[353354282,1739793039892,-1000.0,0.0001367,2]
[353354284,1739793039901,-503.23320906,0.00013673,2]
[353354285,1739793039911,-226.32304027,0.00013673,2]
[353354287,1739793039923,-501.8163031,0.00013673,2]
[353354289,1739793039932,-500.0,0.00013673,2]
[353354290,1739793039943,-159.75252653,0.00013673,2]
[353354291,1739793039954,-150.76641924,0.00013673,2]
[353354292,1739793039963,-160.75097982,0.00013673,2]
[353354293,1739793039972,-500.0,0.00013673,2]
[353354294,1739793039982,-160.02466447,0.00013673,2]
[353354295,1739793039992,-160.75009113,0.00013673,2]
[353354296,1739793040002,-153.94904751,0.00013673,2]
[353354297,1739793040012,-159.75247438,0.00013673,2]
[353354298,1739793040023,-150.76644691,0.00013673,2]
[353354299,1739793040035,-154.76026009,0.00013673,2]
[353354300,1739793040365,-199.69065259,0.00013673,2]
[353354301,1739793040374,-150.76654956,0.00013673,2]
[353354302,1739793040383,-151.76485064,0.00013673,2]
[353354303,1739793040392,-154.76036544,0.00013673,2]
[353354304,1739793040401,-159.7524972,0.00013673,2]
[353354305,1739793040411,-150.7663977,0.00013673,2]
[353354306,1739793040420,-150.76641943,0.00013673,2]
[353354307,1739793040429,-154.76036544,0.00013673,2]
[353354308,1739793040438,-160.30870333,0.00013673,2]
[353354309,1739793040447,-150.76644691,0.00013673,2]
[353354310,1739793040456,-154.76020954,0.00013673,2]
[353354311,1739793040467,-160.75092733,0.00013673,2]
[353354312,1739793040476,-151.76485064,0.00013673,2]
[353354313,1739793040485,-167.74034654,0.00013673,2]
[353354314,1739793040494,-150.76932654,0.00013673,2]
[353354315,1739793040503,-150.76654956,0.00013673,2]
[353354316,1739793040512,-162.47561925,0.00013673,2]
[353354317,1739793040521,-153.26268447,0.00013673,2]
[353354318,1739793040530,-159.7524972,0.00013673,2]
[353354319,1739793040539,-150.76644691,0.00013673,2]
[353354320,1739793040548,-159.75252653,0.00013673,2]
[353354321,1739793040557,-150.76641924,0.00013673,2]
[353354322,1739793040566,-197.68981852,0.00013673,2]
[353354323,1739793040576,-200.68911145,0.00013673,2]
[353354324,1739793040585,-150.76641924,0.00013673,2]
[353354325,1739793040598,-154.76026009,0.00013673,2]
[353354326,1739793040607,-150.7663977,0.00013673,2]
[353354327,1739793040616,-150.76639769,0.00013673,2]
[353354328,1739793040625,-160.75108927,0.00013673,2]
[353354329,1739793040635,-159.75227248,0.00013673,2]
[353354330,1739793040644,-150.76639769,0.00013673,2]
[353354331,1739793040653,-242.89076469,0.00013673,2]
[353354332,1739793040662,-159.75252653,0.00013673,2]
[353354333,1739793040672,-154.79705549,0.00013673,2]
[353354334,1739793040681,-150.76654956,0.00013673,2]
[353354335,1739793040690,-500.0,0.00013673,2]
[353354336,1739793040699,-409.66922969,0.00013673,2]
[353354337,1739793040710,-161.52678817,0.00013673,2]
[353354338,1739793040719,-151.51838356,0.00013673,2]
[353354339,1739793040729,-600.89292641,0.00013673,2]
[353354340,1739793040738,-354.97622004,0.00013673,2]
[353354341,1739793040748,-151.84079211,0.00013673,2]
[353354342,1739793040758,-500.0,0.00013673,2]
[353354343,1739793040767,-152.75609592,0.00013673,2]
[353354344,1739793040776,-161.7691622,0.00013673,2]
[353354345,1739793040786,-150.76641924,0.00013673,2]
[353354346,1739793040795,-159.7524972,0.00013673,2]
[353354347,1739793040805,-159.75252653,0.00013673,2]
[353354348,1739793040815,-159.7526353,0.00013673,2]
[353354349,1739793040824,-157.75572736,0.00013673,2]
[353354350,1739793040833,-156.75713781,0.00013673,2]
[353354351,1739793040842,-159.75247437,0.00013673,2]
[353354352,1739793040850,-151.46375375,0.00013673,2]
[353354353,1739793040860,-150.76654956,0.00013673,2]
[353354354,1739793040868,-154.76026009,0.00013673,2]
[353354355,1739793040878,-151.54447654,0.00013673,2]
[353354356,1739793040888,-517.55920442,0.0001368,2]
[353354357,1739793040897,-1343.5100142,0.00013689,2]
[353354358,1739793040907,-5585.0318252,0.00013689,2]
[353354359,1739793040917,-528.1082873,0.00013689,2]
[353354360,1739793040926,-1382.46341378,0.00013689,2]
[353354361,1739793040938,-528.74175208,0.00013689,2]
[353354362,1739793041008,-2427.35491234,0.00013689,2]
[353354363,1739793041017,-735.72641745,0.00013689,2]
[353354364,1739793041027,-9236.3574268,0.00013689,2]
[353354365,1739793041036,-655.82154315,0.00013689,2]
[353354366,1739793041045,-6080.49380942,0.00013695,2]
[353354367,1739793041063,-9528.53,0.00013695,2]
[353354368,1739793041074,-14116.72208313,0.00013695,2]
[353354369,1739793041085,-23679.12512136,0.00013695,2]
[353354370,1739793041095,-18997.28454995,0.00013695,2]
[353354371,1739793041107,-60583.20000009,0.00013695,2]
[353354372,1739793041120,-1743.3036,0.00013695,2]
[353354373,1739793041215,-9863.54172149,0.00013695,2]
[353354374,1739793041227,-151.0,0.00013695,2]